bitfinex-derivatives/quotes_BTCF0:USTF0_20250811
["timestamp","ask_amount","ask_price","bid_price","bid_amount"]
[1754941989851,0.2472249,118720.0,118710.0,0.198992]
[1754941990152,0.283821,118720.0,118710.0,0.32509647]
[1754941990347,0.283821,118720.0,118710.0,1.40889647]
[1754941990541,0.170661,118720.0,118710.0,0.70367647]
[1754941990741,0.170661,118720.0,118710.0,1.42599647]
[1754941991349,0.170661,118720.0,118710.0,1.76901647]
[1754941991746,0.170661,118720.0,118710.0,1.78679647]
[1754941991942,0.120921,118720.0,118710.0,1.78679647]
[1754941992249,0.120921,118720.0,118710.0,1.95526847]
[1754941992443,0.120921,118720.0,118710.0,1.78879647]
[1754941992647,0.169261,118720.0,118710.0,1.76729647]
[1754941993155,0.169261,118720.0,118710.0,1.78507647]
[1754941993351,0.168261,118720.0,118710.0,1.78407647]
[1754941993555,0.168261,118720.0,118710.0,1.78307647]
[1754941993756,0.122921,118720.0,118710.0,2.21769637]
[1754941994446,0.0781019,118720.0,118710.0,2.38516837]
[1754941994653,0.04634,118740.0,118730.0,0.0842177]
[1754941994851,0.04634,118740.0,118730.0,1.6289177]
[1754941995052,0.04634,118740.0,118730.0,1.75509611]
[1754941995248,0.3608,118750.0,118730.0,2.44036461]
[1754941995454,0.5065535,118750.0,118740.0,0.1944306]
[1754941995649,0.06165,118750.0,118740.0,0.1945306]
[1754941995855,0.0001,118750.0,118740.0,0.32070901]
[1754941996055,0.04644,118750.0,118740.0,0.32070901]
[1754941996358,0.04644,118750.0,118740.0,0.68150901]
[1754941996555,0.04744,118750.0,118740.0,0.68150901]
[1754941996853,0.0011,118750.0,118740.0,0.68150901]
[1754941997054,0.06755911,118750.0,118740.0,1.11412891]
[1754941997354,0.0021,118750.0,118740.0,0.68250901]
[1754941997553,0.04844,118750.0,118740.0,0.68250901]
[1754941997756,0.169261,118750.0,118740.0,1.74930901]
[1754941998253,0.169261,118750.0,118740.0,1.74926901]
[1754941998558,1.33806977,118750.0,118740.0,0.21148911]
[1754941998760,0.90644987,118750.0,118740.0,0.12927841]
[1754941998959,1.33906977,118750.0,118740.0,0.12927841]
[1754941999655,0.90644987,118750.0,118740.0,0.12927841]
[1754941999860,1.33906977,118750.0,118740.0,0.12927841]
[1754942000360,1.1593945,118750.0,118740.0,0.12927841]
[1754942000556,1.33906977,118750.0,118740.0,0.12927841]
[1754942000955,1.40511789,118750.0,118740.0,0.12927841]
[1754942001461,1.43307312,118750.0,118740.0,0.12927841]
[1754942001952,1.43307312,118750.0,118740.0,0.21348911]
[1754942002153,1.00045322,118750.0,118740.0,0.21348911]
[1754942002354,1.43307312,118750.0,118740.0,0.21348911]
[1754942002654,1.00042671,118750.0,118740.0,0.27360911]
[1754942002855,0.79282272,118750.0,118740.0,0.32370911]
[1754942003051,0.37537333,118750.0,118740.0,1.37922911]
[1754942003259,0.61169789,118750.0,118740.0,1.37922911]
[1754942003454,0.52749439,118750.0,118740.0,1.37922911]
[1754942003649,0.61169789,118750.0,118740.0,1.37922911]
[1754942003965,0.97249789,118750.0,118740.0,1.37922911]
[1754942004157,0.61169789,118750.0,118740.0,1.37922911]
[1754942005061,0.23530912,118750.0,118740.0,1.37922911]
[1754942005262,0.23530912,118750.0,118740.0,1.81184901]
[1754942005970,0.23530912,118750.0,118740.0,1.74002911]
[1754942006464,0.18896912,118750.0,118740.0,1.74002911]
[1754942006764,0.18896912,118750.0,118740.0,2.17264901]
[1754942007251,0.18896912,118750.0,118740.0,2.34108101]
[1754942007456,0.18896912,118750.0,118740.0,2.39108101]
[1754942008172,0.18896912,118750.0,118740.0,0.85294111]
[1754942008461,0.23530912,118750.0,118740.0,1.89934111]
[1754942008958,0.23530912,118750.0,118740.0,1.72966911]
[1754942009667,0.23530912,118750.0,118740.0,0.68450911]
[1754942009866,0.39203209,118760.0,118750.0,0.0842037]
[1754942010267,0.44299209,118760.0,118750.0,0.31994963]
[1754942010459,1.05673672,118760.0,118750.0,0.12552593]
[1754942010660,1.23641199,118760.0,118750.0,0.12552593]
[1754942010861,0.80379209,118760.0,118750.0,0.12552593]
[1754942011060,0.80389209,118760.0,118750.0,0.12562593]
[1754942011256,1.23651199,118760.0,118750.0,0.0001]
[1754942011461,0.0842037,118750.0,118740.0,0.003]
[1754942011662,1.10825887,118750.0,118740.0,0.003]
[1754942011867,1.33696987,118750.0,118740.0,0.001]
[1754942012171,0.0842178,118730.0,118720.0,1.3760592]
[1754942012463,0.42274307,118730.0,118720.0,1.5353792]
[1754942012666,0.42274307,118730.0,118720.0,2.02283056]
[1754942012667,0.10799,118730.0,118720.0,2.02283056]
[1754942012868,0.0001,118730.0,118720.0,2.45545046]
[1754942013169,0.0001,118730.0,118720.0,2.62390646]
[1754942013465,0.0001,118730.0,118720.0,2.02283056]
[1754942014467,0.0001,118730.0,118720.0,1.66203056]
[1754942014665,0.0011,118730.0,118720.0,1.66403056]
[1754942015067,0.0021,118730.0,118720.0,1.67003056]
[1754942015262,0.122921,118730.0,118720.0,2.10265046]
[1754942015467,0.122921,118730.0,118720.0,1.67003056]
[1754942015664,0.122921,118730.0,118720.0,2.03083056]
[1754942016966,0.73521617,118730.0,118720.0,0.83235056]
[1754942017166,0.73521617,118730.0,118720.0,0.37819616]
[1754942017167,0.89406617,118730.0,118720.0,0.37819616]
[1754942017371,0.46144627,118730.0,118720.0,0.21887626]
[1754942017571,0.46144627,118730.0,118720.0,0.73899626]
[1754942017773,0.46144627,118730.0,118720.0,0.37819626]
[1754942018271,0.82224627,118730.0,118720.0,0.37819626]
[1754942019069,0.122921,118730.0,118720.0,0.37819626]
[1754942019267,0.122921,118730.0,118720.0,0.84908451]
[1754942019470,0.30259627,118730.0,118720.0,1.20988451]
[1754942019672,0.122921,118730.0,118720.0,1.20988451]
[1754942020573,0.0993916,118730.0,118720.0,1.37824051]
[1754942020772,0.0493916,118730.0,118720.0,1.37824051]
[1754942021370,0.11133641,118750.0,118740.0,0.0842108]
[1754942021565,0.29101168,118750.0,118740.0,2.06076905]
[1754942021766,0.29111168,118750.0,118740.0,2.18769177]
[1754942022368,0.11143641,118750.0,118740.0,2.18769177]
[1754942022568,0.11243641,118750.0,118740.0,2.19169177]
[1754942022773,0.11243641,118750.0,118740.0,2.55249177]
[1754942023373,0.06720641,118750.0,118740.0,2.72092377]
[1754942023570,0.06820641,118750.0,118740.0,2.55449177]
[1754942023773,0.11343641,118750.0,118740.0,2.55449177]
[1754942024682,0.23425741,118750.0,118740.0,2.55449177]
[1754942026180,0.23425741,118750.0,118740.0,2.08360352]
[1754942026381,0.23425741,118750.0,118740.0,2.55449177]
[1754942027173,0.41393268,118750.0,118740.0,1.04872352]
[1754942027370,1.35367093,118750.0,118740.0,0.32712352]
[1754942027575,0.96698628,118750.0,118740.0,0.21713352]
[1754942028177,0.96698628,118750.0,118740.0,0.13292272]
[1754942028382,0.96698628,118750.0,118740.0,0.21713342]
[1754942028968,1.35367093,118750.0,118740.0,0.21713342]
[1754942029380,1.02547093,118750.0,118740.0,0.21703342]
[1754942029681,0.55458268,118750.0,118740.0,0.21703342]
[1754942030380,0.37490741,118750.0,118740.0,1.23591342]
[1754942030688,0.17977527,118750.0,118740.0,1.86104167]
[1754942030874,0.0001,118750.0,118740.0,2.22184167]
[1754942031071,0.0001,118750.0,118740.0,2.39027367]
[1754942031384,0.120921,118750.0,118740.0,2.39027367]
[1754942031582,0.120921,118750.0,118740.0,2.22184167]
[1754942031783,0.120921,118750.0,118740.0,2.41756378]
[1754942032278,0.40603,118780.0,118770.0,0.0841894]
[1754942032477,0.15328,118780.0,118770.0,1.2107394]
[1754942032784,0.33295527,118780.0,118770.0,1.33630298]
[1754942033280,0.33295527,118780.0,118770.0,1.38153298]
[1754942033481,0.33305527,118780.0,118770.0,1.38163298]
[1754942033681,0.33305527,118780.0,118770.0,1.38263298]
[1754942035287,0.22500527,118780.0,118770.0,1.85252123]
[1754942035487,0.40580627,118780.0,118770.0,1.38463298]
[1754942035890,0.40680627,118780.0,118770.0,1.38663298]
[1754942036987,0.40680627,118780.0,118770.0,0.37007298]
[1754942036988,0.45587627,118780.0,118770.0,0.37007298]
[1754942037289,0.52232525,118780.0,118770.0,1.33152298]
[1754942039193,0.47325525,118780.0,118770.0,1.37675298]
[1754942039786,0.41427525,118780.0,118770.0,1.37675298]
[1754942040289,0.18936998,118780.0,118770.0,1.84764123]
[1754942040492,0.36904525,118780.0,118770.0,1.37675298]
[1754942040693,1.4381954,118780.0,118770.0,1.24137358]
[1754942040888,1.4381954,118780.0,118770.0,0.24065358]
[1754942041189,0.96730715,118780.0,118770.0,0.21485258]
[1754942041393,0.88312525,118780.0,118770.0,0.32484258]
[1754942041788,0.18936998,118780.0,118770.0,0.84096083]
[1754942042599,0.23459998,118780.0,118770.0,0.37007258]
[1754942043185,0.18936998,118780.0,118770.0,0.37007258]
[1754942043387,0.18936998,118780.0,118770.0,1.20176083]
[1754942043994,0.18936998,118780.0,118770.0,2.20564083]
[1754942044192,0.23459998,118780.0,118770.0,2.20564083]
[1754942044395,0.18936998,118780.0,118770.0,2.20564083]
[1754942044695,0.18936998,118780.0,118770.0,2.37402483]
[1754942045680,0.18936998,118780.0,118770.0,1.90313658]
[1754942045892,0.18936998,118780.0,118770.0,2.37402483]
[1754942046096,0.18936998,118780.0,118770.0,2.01322483]
[1754942046286,0.18936998,118780.0,118770.0,2.20894694]
[1754942046486,0.18936998,118780.0,118770.0,2.56974694]
[1754942046690,0.18936998,118780.0,118770.0,2.40136294]
[1754942047394,0.18936998,118780.0,118770.0,2.37402483]
[1754942047595,0.18936998,118780.0,118770.0,2.20564083]
[1754942048987,0.122921,118780.0,118770.0,2.20564083]
[1754942049184,0.04523,118810.0,118800.0,0.0841681]
[1754942049389,0.04523,118810.0,118800.0,1.1885181]
[1754942049594,0.28388527,118810.0,118800.0,1.31508268]
[1754942049794,0.69375527,118810.0,118800.0,1.31508268]
[1754942049992,0.75984422,118810.0,118800.0,1.31508268]
[1754942050190,0.75984422,118810.0,118800.0,0.12656458]
[1754942050191,1.31489347,118810.0,118800.0,0.12656458]
[1754942050493,1.31499347,118810.0,118790.0,0.0841752]
[1754942050698,1.18983162,118800.0,118790.0,0.1683504]
[1754942050895,1.18983162,118800.0,118790.0,0.29457186]
[1754942050896,1.16464352,118800.0,118790.0,0.29457186]
[1754942051097,0.22515527,118800.0,118790.0,0.86953011]
[1754942051296,0.22515527,118800.0,118790.0,0.86963011]
[1754942051503,0.22515527,118800.0,118790.0,1.23043011]
[1754942051701,0.04558,118800.0,118790.0,1.23053011]
[1754942052308,0.166401,118800.0,118790.0,1.23053011]
[1754942052502,0.166401,118800.0,118790.0,1.23153011]
[1754942052994,0.167401,118800.0,118790.0,1.23353011]
[1754942053398,0.121921,118800.0,118790.0,1.23353011]
[1754942054106,0.122921,118800.0,118790.0,1.23553011]
[1754942054508,0.092373,118800.0,118790.0,1.23543011]
[1754942054705,0.0504851,118800.0,118790.0,1.23543011]
[1754942054908,0.06608895,118810.0,118790.0,1.57213931]
[1754942055210,0.04548,118820.0,118810.0,0.0841611]
[1754942055406,0.04548,118820.0,118810.0,0.91584935]
[1754942055407,0.22515527,118820.0,118810.0,0.91584935]
[1754942055609,0.29250418,118820.0,118810.0,1.14581369]
[1754942055804,0.29260418,118820.0,118810.0,1.14591369]
[1754942056000,0.04558,118820.0,118810.0,1.14591369]
[1754942056205,0.0001,118820.0,118810.0,1.14591369]
[1754942057304,0.69998527,118820.0,118810.0,0.21005544]
[1754942057504,1.17087352,118820.0,118810.0,0.21005544]
[1754942057709,0.69998527,118820.0,118810.0,0.21005544]
[1754942057902,1.37584852,118820.0,118810.0,0.21005544]
[1754942058309,0.82080627,118820.0,118810.0,0.21005544]
[1754942058508,0.82080627,118820.0,118810.0,0.21105544]
[1754942058813,0.82080627,118820.0,118810.0,0.21205544]
[1754942059611,0.82080627,118820.0,118810.0,0.31612544]
[1754942061614,0.641131,118820.0,118810.0,0.31612544]
[1754942061814,0.46000627,118820.0,118810.0,0.31612544]
[1754942063516,0.90496037,118820.0,118810.0,0.31612544]
[1754942063718,1.37584862,118820.0,118810.0,0.21205544]
[1754942063923,1.37584862,118820.0,118810.0,1.19349544]
[1754942064626,1.29169452,118820.0,118810.0,1.19349544]
[1754942065619,1.37584852,118820.0,118810.0,1.19349544]
[1754942065819,1.29169452,118820.0,118810.0,1.19349544]
[1754942066320,0.82080627,118820.0,118810.0,1.19349544]
[1754942067026,0.82080627,118820.0,118810.0,1.29756544]
[1754942068022,0.46000627,118820.0,118810.0,1.29756544]
[1754942068321,0.81294627,118820.0,118810.0,1.29756544]
[1754942068523,0.92687627,118820.0,118810.0,1.29756544]
[1754942069127,1.39776452,118820.0,118810.0,1.18649544]
[1754942069615,1.48191842,118820.0,118810.0,0.21205544]
[1754942069820,1.39776452,118820.0,118810.0,1.18553544]
[1754942070220,1.48191842,118820.0,118810.0,1.18553544]
[1754942070628,1.39776452,118820.0,118810.0,1.28960544]
[1754942070925,1.48191842,118820.0,118810.0,1.28960544]
[1754942071326,1.39776452,118820.0,118810.0,1.28960544]
[1754942071525,0.92687627,118820.0,118810.0,1.28960544]
[1754942073225,0.79984627,118820.0,118810.0,1.28960544]
[1754942073617,0.84036627,118820.0,118810.0,1.28960544]
[1754942073827,0.92687627,118820.0,118810.0,1.28960544]
[1754942074024,1.01103017,118820.0,118810.0,1.28960544]
[1754942074225,0.92687627,118820.0,118810.0,1.28960544]
[1754942074431,1.39776452,118820.0,118810.0,1.28960544]
[1754942074933,0.92687627,118820.0,118810.0,1.28960544]
[1754942076331,0.56607627,118820.0,118810.0,1.76049369]
[1754942076530,0.166401,118820.0,118810.0,1.76049369]
[1754942076728,0.166401,118820.0,118810.0,2.12139369]
[1754942077624,0.120921,118820.0,118810.0,2.12139369]
[1754942077827,0.120921,118820.0,118810.0,2.28972169]
[1754942078536,0.166401,118820.0,118810.0,2.28972169]
[1754942079032,0.120921,118820.0,118810.0,2.28972169]
[1754942080329,1.25110315,118820.0,118810.0,0.23196434]
[1754942080536,1.30224315,118820.0,118810.0,0.21481434]
[1754942080830,1.48191842,118820.0,118810.0,0.12789434]
[1754942081037,1.48191842,118820.0,118810.0,0.12989434]
[1754942081038,1.48291842,118820.0,118810.0,0.12989434]
[1754942081628,1.48291842,118820.0,118810.0,0.12889434]
[1754942081629,1.39876452,118820.0,118810.0,0.12889434]
[1754942081838,0.92787627,118820.0,118810.0,0.12989434]
[1754942082042,1.39876452,118820.0,118810.0,0.13089434]
[1754942082233,1.39776452,118820.0,118810.0,0.12689434]
[1754942082632,0.92687627,118820.0,118810.0,0.12689434]
[1754942082831,0.92687627,118820.0,118810.0,0.22925434]
[1754942083034,0.92687627,118820.0,118810.0,0.30636434]
[1754942083331,0.92687627,118820.0,118810.0,0.30651434]
[1754942083737,0.45214627,118820.0,118810.0,0.30551434]
[1754942083933,0.45314627,118820.0,118810.0,0.30551434]
[1754942084139,0.34707627,118820.0,118810.0,0.77650259]
[1754942084634,0.120921,118820.0,118810.0,1.13830259]
[1754942084839,0.120921,118820.0,118810.0,1.06304259]
[1754942085034,0.120921,118820.0,118810.0,0.70224259]
[1754942085231,0.170871,118820.0,118810.0,1.06304259]
[1754942085430,0.170871,118820.0,118810.0,1.06104259]
[1754942085631,0.171871,118820.0,118810.0,1.06404259]
[1754942085834,0.172871,118820.0,118810.0,1.06604259]
[1754942086125,0.171871,118820.0,118810.0,0.70124259]
[1754942086336,0.172871,118820.0,118810.0,0.70424259]
[1754942086531,0.172871,118820.0,118810.0,1.06504259]
[1754942087233,0.172871,118820.0,118810.0,0.70424259]
[1754942087438,0.172871,118820.0,118810.0,1.06504259]
[1754942087839,0.172871,118820.0,118810.0,1.06204259]
[1754942088039,0.172871,118820.0,118810.0,1.06604259]
[1754942088538,0.172871,118820.0,118810.0,1.06504259]
[1754942089242,0.35254627,118820.0,118810.0,0.13089434]
[1754942089543,0.93095627,118820.0,118810.0,1.22221434]
[1754942090043,1.29400452,118820.0,118810.0,0.13089434]
[1754942090342,1.11432925,118820.0,118810.0,0.13089434]
[1754942090542,1.29400452,118820.0,118810.0,0.13089434]
[1754942091036,0.82311627,118820.0,118810.0,0.13089434]
[1754942093136,0.82311627,118820.0,118810.0,1.07893434]
[1754942093937,0.82311627,118820.0,118810.0,0.13089434]
[1754942094138,1.29400452,118820.0,118810.0,0.13089434]
[1754942094332,1.29400452,118820.0,118810.0,1.07753434]
[1754942094937,0.82311627,118820.0,118810.0,1.07753434]
[1754942095138,1.29400452,118820.0,118810.0,1.07753434]
[1754942095441,1.29400452,118820.0,118810.0,1.07629434]
[1754942097045,1.29400452,118820.0,118810.0,0.13089434]
[1754942097242,1.29400452,118820.0,118810.0,1.02373434]
[1754942097948,0.82311627,118820.0,118810.0,1.02373434]
[1754942098142,1.40184452,118820.0,118810.0,1.02373434]
[1754942099234,0.93095627,118820.0,118810.0,1.02373434]
[1754942099541,0.71334627,118820.0,118810.0,1.17197434]
[1754942099840,0.77192627,118820.0,118810.0,1.17197434]
[1754942100143,0.122921,118820.0,118810.0,1.17197434]
[1754942100334,1.24281452,118820.0,118810.0,0.08089434]
[1754942100538,0.82311627,118820.0,118810.0,0.94566]
[1754942100734,1.29400452,118820.0,118810.0,0.94566]
[1754942101436,0.82311627,118820.0,118810.0,0.94742]
[1754942101639,1.29400452,118820.0,118810.0,0.94742]
[1754942102243,1.46233252,118820.0,118810.0,0.0051]
[1754942102443,1.46233252,118820.0,118810.0,0.94842]
[1754942104350,0.99144427,118820.0,118810.0,0.94842]
[1754942104645,1.46233252,118820.0,118810.0,0.0051]
[1754942104852,1.46233252,118820.0,118810.0,0.94646]
[1754942106955,1.46544202,118820.0,118810.0,0.94646]
[1754942108155,1.46233252,118820.0,118810.0,0.94482]
[1754942109861,0.99144427,118820.0,118810.0,0.94482]
[1754942110160,1.57017252,118820.0,118810.0,0.0051]
[1754942110358,1.57163771,118820.0,118810.0,0.94234]
[1754942112159,1.39186244,118820.0,118810.0,0.82508]
[1754942112454,1.39186244,118820.0,118810.0,0.42110473]
[1754942112661,1.39186244,118820.0,118810.0,0.40907473]
[1754942112857,1.39186244,118820.0,118790.0,1.20982]
[1754942113058,1.19248825,118800.0,118770.0,0.19572211]
[1754942113260,1.22607825,118780.0,118770.0,0.29886211]
[1754942113457,1.41410825,118780.0,118770.0,1.3628138]
[1754942113756,1.44289225,118780.0,118770.0,0.3680138]
[1754942113954,1.44289225,118780.0,118770.0,1.16853169]
[1754942114154,1.44289225,118780.0,118770.0,0.23101169]
[1754942114355,1.44289225,118780.0,118770.0,0.23901169]
[1754942114555,1.44289225,118780.0,118770.0,1.17529169]
[1754942114754,1.44289225,118780.0,118770.0,1.16729169]
[1754942114957,0.80462,118780.0,118770.0,1.17229169]
[1754942115153,0.843521,118780.0,118770.0,1.21956169]
[1754942116056,0.891851,118780.0,118770.0,1.21956169]
[1754942116658,0.892851,118780.0,118770.0,1.22256169]
[1754942118770,1.36373925,118780.0,118770.0,1.22256169]
[1754942119068,1.39732925,118780.0,118770.0,1.16989169]
[1754942119365,1.39732925,118780.0,118770.0,0.18029169]
[1754942119660,1.56571325,118780.0,118770.0,0.93832]
[1754942119864,1.56571325,118780.0,118770.0,0.98446]
[1754942121654,1.56571325,118780.0,118770.0,0.98238]
[1754942122351,1.094825,118780.0,118770.0,0.98238]
[1754942122563,1.56571325,118780.0,118770.0,0.98238]
[1754942122766,1.39732925,118780.0,118770.0,0.98238]
[1754942123460,1.39732925,118780.0,118770.0,1.0411]
[1754942124167,1.34899925,118780.0,118770.0,1.08909]
[1754942124475,0.844521,118780.0,118770.0,1.08909]
[1754942124653,0.844521,118780.0,118770.0,0.16085]
[1754942124857,0.844521,118780.0,118770.0,1.18867]
[1754942126568,1.36373925,118780.0,118770.0,1.18867]
[1754942127569,1.36373925,118780.0,118770.0,0.26399]
[1754942127764,1.36373925,118780.0,118770.0,1.18583]
[1754942130959,1.36373925,118780.0,118770.0,0.26399]
[1754942131168,1.36373925,118780.0,118770.0,1.0754]
[1754942131366,1.36373925,118780.0,118770.0,1.13412]
[1754942131567,1.36373925,118780.0,118770.0,1.18211]
[1754942132174,0.892851,118780.0,118770.0,1.18211]
[1754942132364,0.844521,118780.0,118770.0,1.30769024]
[1754942132760,1.31540925,118780.0,118770.0,1.30769024]
[1754942133074,1.36373925,118780.0,118770.0,0.38957024]
[1754942133369,1.36373925,118780.0,118770.0,1.30585024]
[1754942133574,1.36373925,118780.0,118770.0,0.17972024]
[1754942133770,1.36373925,118780.0,118770.0,0.9699]
[1754942134772,1.36373925,118780.0,118770.0,0.92376]
[1754942135567,1.36373925,118780.0,118770.0,0.9699]
[1754942137874,1.36373925,118780.0,118770.0,1.02862]
[1754942138776,1.36373925,118780.0,118770.0,0.11286]
[1754942139075,0.892851,118780.0,118770.0,0.9677]
[1754942139263,1.39732925,118780.0,118770.0,0.9677]
[1754942139477,1.39732925,118780.0,118770.0,1.02642]
[1754942139668,0.926441,118780.0,118770.0,1.07441]
[1754942139967,1.39732925,118780.0,118770.0,1.07441]
[1754942141076,1.31540925,118780.0,118770.0,1.07441]
[1754942141666,1.36647925,118780.0,118770.0,1.06981]
[1754942141867,1.36647925,118780.0,118770.0,0.05414]
[1754942142070,1.36647925,118780.0,118770.0,0.9631]
[1754942143081,1.36647925,118780.0,118770.0,1.05741]
[1754942143468,1.36647925,118780.0,118770.0,1.09724]
[1754942143968,1.36647925,118780.0,118770.0,1.1493]
[1754942145777,1.36647925,118780.0,118770.0,1.14582]
[1754942149276,1.31540925,118780.0,118770.0,1.14582]
[1754942149779,1.31540925,118780.0,118770.0,1.27261944]
[1754942150176,0.844521,118780.0,118770.0,1.27261944]
[1754942150374,0.731801,118780.0,118770.0,1.27261944]
[1754942151579,0.731801,118780.0,118770.0,1.26797944]
[1754942152983,0.731801,118780.0,118770.0,1.26629944]
[1754942153483,1.29224925,118780.0,118770.0,1.19184944]
[1754942153785,1.39098925,118780.0,118770.0,0.95122]
[1754942157083,1.39098925,118780.0,118770.0,1.01223]
[1754942158987,1.39098925,118780.0,118770.0,1.06429]
[1754942160690,0.920101,118780.0,118770.0,1.06429]
[1754942160890,1.20268925,118780.0,118770.0,1.06429]
[1754942161187,1.30994925,118780.0,118770.0,1.06429]
[1754942162086,1.25991925,118780.0,118770.0,1.06429]
[1754942162389,1.20268925,118780.0,118770.0,1.06429]
[1754942162774,1.20268925,118780.0,118770.0,0.16721]
[1754942162980,1.20268925,118780.0,118770.0,1.17217]
[1754942163278,0.731801,118780.0,118770.0,1.17217]
[1754942163474,1.20268925,118780.0,118770.0,1.17217]
[1754942163791,0.731801,118780.0,118770.0,1.17217]
[1754942164488,0.731801,118780.0,118770.0,1.29902537]
[1754942166992,0.731801,118780.0,118770.0,1.51740937]
[1754942167185,0.208281,118780.0,118770.0,1.51740937]
[1754942167490,0.3608,118800.0,118770.0,1.98829762]
[1754942167691,0.3608,118800.0,118780.0,0.05206]
[1754942167893,0.3608,118800.0,118790.0,0.93171]
[1754942168080,0.40951,118800.0,118790.0,0.98377]
[1754942168282,0.3608,118800.0,118790.0,1.10353903]
[1754942168487,0.40961,118800.0,118790.0,1.10363903]
[1754942168994,1.09372825,118800.0,118790.0,1.06856903]
[1754942169179,1.09372825,118800.0,118790.0,0.11986903]
[1754942169385,1.09472825,118800.0,118790.0,1.02122903]
[1754942169589,1.09472825,118800.0,118790.0,1.07528903]
[1754942169991,0.62384,118800.0,118790.0,1.07528903]
[1754942170194,1.09472825,118800.0,118790.0,1.07528903]
[1754942170393,1.21554925,118800.0,118790.0,1.07528903]
[1754942170994,1.16551925,118800.0,118790.0,1.07616903]
[1754942171385,1.21757925,118800.0,118790.0,1.07616903]
[1754942171894,1.03421925,118800.0,118790.0,1.07616903]
[1754942172096,1.09287925,118800.0,118790.0,1.07616903]
[1754942172288,1.14493925,118800.0,118790.0,1.07616903]
[1754942172592,1.14493925,118800.0,118790.0,1.07470903]
[1754942173191,0.674051,118800.0,118790.0,1.07470903]
[1754942173396,0.483721,118800.0,118790.0,1.07470903]
[1754942173993,0.483721,118800.0,118790.0,1.24306903]
[1754942174496,1.06315925,118800.0,118790.0,1.07470903]
[1754942174996,1.11521925,118800.0,118790.0,1.07470903]
[1754942176192,0.592271,118800.0,118790.0,1.07470903]
[1754942178492,0.533611,118800.0,118790.0,1.07470903]
[1754942180096,0.533611,118800.0,118790.0,1.07962142]
[1754942180594,0.592271,118800.0,118790.0,1.07962142]
[1754942180795,0.622581,118800.0,118790.0,1.07962142]
[1754942180991,0.622581,118800.0,118790.0,1.07470903]
[1754942181190,1.01632743,118800.0,118790.0,1.07470903]
[1754942181391,1.01632743,118800.0,118790.0,0.17810903]
[1754942181698,1.06838743,118800.0,118790.0,1.11104903]
[1754942182495,0.674641,118800.0,118790.0,1.11104903]
[1754942182690,0.748181,118800.0,118790.0,1.11104903]
[1754942182897,1.14192743,118800.0,118790.0,1.11104903]
[1754942183097,1.08986743,118800.0,118790.0,1.11104903]
[1754942183796,0.696121,118800.0,118790.0,1.11104903]
[1754942183998,0.172811,118800.0,118790.0,1.50479546]
[1754942184193,0.172811,118800.0,118790.0,1.86559546]
[1754942184396,0.172811,118800.0,118790.0,1.47184903]
[1754942187289,0.122921,118800.0,118790.0,2.03395546]
[1754942187497,0.049591,118800.0,118790.0,2.03385546]
[1754942187699,0.36395919,118820.0,118790.0,2.08385546]
[1754942187894,0.00315919,118820.0,118810.0,0.39374643]
[1754942188192,0.00315919,118820.0,118810.0,2.14327531]
[1754942188498,0.00315919,118820.0,118810.0,2.53702174]
[1754942188697,0.00325919,118820.0,118810.0,2.22753461]
[1754942188888,0.00325919,118820.0,118810.0,2.62128104]
[1754942189093,0.00325919,118820.0,118810.0,2.98308104]
[1754942189396,0.00425919,118820.0,118810.0,3.15140904]
[1754942189792,0.00525919,118820.0,118810.0,3.15140904]
[1754942190194,0.00525919,118820.0,118810.0,1.33537461]
[1754942190399,0.05514919,118820.0,118810.0,2.23137461]
[1754942190595,0.05414919,118820.0,118810.0,2.23137461]
[1754942190795,0.17597019,118820.0,118810.0,2.23537461]
[1754942191204,0.17597019,118820.0,118810.0,2.62912104]
[1754942191501,0.17597019,118820.0,118810.0,2.98992104]
[1754942191802,0.17597019,118820.0,118810.0,2.99192104]
[1754942192102,0.17597019,118820.0,118810.0,2.59817461]
[1754942192301,0.17597019,118820.0,118810.0,2.99192104]
[1754942192498,0.12608019,118820.0,118810.0,2.99192104]
[1754942192997,0.12608019,118820.0,118810.0,2.09592104]
[1754942193204,0.17597019,118820.0,118810.0,2.59797461]
[1754942193906,0.17597019,118820.0,118810.0,2.99172104]
[1754942194305,0.12608019,118820.0,118810.0,2.99172104]
[1754942194511,0.12608019,118820.0,118810.0,3.16004904]
[1754942195005,0.12608019,118820.0,118810.0,3.15904904]
[1754942195508,0.12608019,118820.0,118810.0,3.15804904]
[1754942195704,0.122921,118820.0,118810.0,3.15488969]
[1754942196208,0.123921,118820.0,118810.0,3.16088969]
[1754942196703,0.04989,118850.0,118840.0,0.0841396]
[1754942196908,0.86526643,118870.0,118860.0,0.0841254]
[1754942197109,0.96911643,118870.0,118860.0,2.1434454]
[1754942197403,1.01900643,118870.0,118860.0,2.1434454]
[1754942197612,0.51454,118870.0,118860.0,2.19828515]
[1754942197813,0.62536,118870.0,118860.0,2.19838515]
[1754942198103,0.26456,118870.0,118860.0,2.19838515]
[1754942198305,0.2059,118870.0,118860.0,2.19838515]
[1754942198515,0.65830643,118870.0,118860.0,2.19838515]
[1754942198706,0.26456,118870.0,118860.0,1.30282515]
[1754942198907,1.10322473,118870.0,118860.0,2.11409975]
[1754942199306,1.10322473,118870.0,118860.0,2.11509975]
[1754942199513,1.10322473,118870.0,118860.0,2.19922515]
[1754942200312,0.62536,118870.0,118860.0,2.19922515]
[1754942200908,1.01910643,118870.0,118860.0,2.19922515]
[1754942201615,0.62536,118870.0,118860.0,2.19922515]
[1754942202018,1.01910643,118870.0,118860.0,2.19922515]
[1754942202213,0.04999,118870.0,118860.0,2.59297158]
[1754942202416,0.04999,118870.0,118860.0,2.19922515]
[1754942202612,0.04999,118870.0,118860.0,2.56002515]
[1754942202808,0.86551643,118900.0,118890.0,0.0841042]
[1754942203013,1.05428363,118900.0,118890.0,0.9791842]
[1754942203314,1.10143363,118900.0,118890.0,0.9791842]
[1754942203520,1.10143363,118900.0,118890.0,0.89508]
[1754942203817,1.10143363,118900.0,118890.0,0.9791842]
[1754942204017,1.10253363,118900.0,118890.0,0.89718]
[1754942204815,0.7097872,118900.0,118890.0,0.9842844]
[1754942205017,1.10353363,118900.0,118890.0,0.90018]
[1754942205212,1.10353363,118900.0,118890.0,0.9842844]
[1754942205415,1.10353363,118900.0,118890.0,0.90018]
[1754942205716,0.2523479,118880.0,118860.0,1.4161321]
[1754942205912,0.26279,118870.0,118860.0,1.4206421]
[1754942206118,0.65653643,118870.0,118860.0,2.32251772]
[1754942206305,0.65653643,118870.0,118860.0,1.42771772]
[1754942206909,0.65653643,118870.0,118860.0,2.32243772]
[1754942207105,0.65663643,118870.0,118860.0,2.32453772]
[1754942207611,0.26289,118870.0,118860.0,2.32453772]
[1754942208012,0.26389,118870.0,118860.0,2.32453772]
[1754942208411,0.26389,118870.0,118860.0,2.32253772]
[1754942208617,0.26589,118870.0,118860.0,2.68433772]